[Event "FIDE Grand Swiss 2023"]
[Site "Villa Marina, Douglas, Isle of Man"]
[Date "2023.11.01"]
[Round "7.27"]
[White "Grandelius, Nils"]
[Black "Aryan, Chopra"]
[Result "1/2-1/2"]
[WhiteElo "2689"]
[BlackElo "2634"]
[EventDate "2023.10.25"]
[ECO "B30"]
[PlyCount "76"]
[BlackClock "00:06:32"]
[BlackFideId "5084423"]
[TimeControl "40/100 + 20/50 + 15 + 30s/move"]
[WhiteClock "00:00:30"]
[WhiteFideId "1710400"]

1.e4 {[%clk 01:40:45][%emt 00:00:14]} 1...c5 {[%clk 01:40:55][%emt 00:00:05]} 
2.Nf3 {[%clk 01:41:00][%emt 00:00:14]} 2...Nc6 {[%clk 01:41:20][%emt 00:00:07]} 
3.Bb5 {[%clk 01:40:31][%emt 00:00:59]} 3...e6 {[%clk 01:41:43][%emt 00:00:07]} 
4.O-O {[%clk 01:40:08][%emt 00:00:51]} 4...Nge7 {[%clk 01:42:07][%emt 00:00:07]} 
5.Re1 {[%clk 01:40:01][%emt 00:00:38]} 5...a6 {[%clk 01:42:19][%emt 00:00:18]} 
6.Bf1 {[%clk 01:39:50][%emt 00:00:40]} 6...d5 {[%clk 01:42:36][%emt 00:00:13]} 
7.exd5 {[%clk 01:39:28][%emt 00:00:52]} 7...Nxd5 {[%clk 01:42:59][%emt
00:00:07]} 8.d4 {[%clk 01:36:41][%emt 00:03:17]} 8...Nf6 {[%clk 01:43:10][%emt
00:00:20]} 9.Be3 {[%clk 01:36:17][%emt 00:00:54]} 9...Be7 {[%clk 01:43:20][%emt
00:00:20]} 10.c4 {[%clk 01:34:29][%emt 00:02:18]} 10...O-O {[%clk 01:43:24][%emt
00:00:26]} 11.Nc3 {[%clk 01:34:44][%emt 00:00:14]} 11...cxd4 {[%clk
01:43:31][%emt 00:00:23]} 12.Nxd4 {[%clk 01:35:05][%emt 00:00:09]} 12...Ne5 
{[%clk 01:43:55][%emt 00:00:06]} 13.h3 {[%clk 01:29:09][%emt 00:06:26]} 
13...Bd7 {[%clk 01:44:07][%emt 00:00:18]} 14.Nf3 {[%clk 01:13:51][%emt
00:15:48]} 14...Nxf3+ {[%clk 01:36:37][%emt 00:08:00]} 15.Qxf3 {[%clk
01:14:12][%emt 00:00:09]} 15...Bc6 {[%clk 01:37:02][%emt 00:00:06]} 16.Qg3 
{[%clk 01:13:51][%emt 00:00:51]} 16...Bd6 {[%clk 01:33:25][%emt 00:04:07]} 
17.Qh4 {[%clk 01:11:45][%emt 00:02:36]} 17...Nd7 {[%clk 01:11:26][%emt
00:22:30]} 18.Bg5 {[%clk 01:07:15][%emt 00:04:59]} 18...Qc7 {[%clk
01:10:33][%emt 00:01:23]} 19.Rad1 {[%clk 00:43:58][%emt 00:23:46]} 19...Rfe8 
{[%clk 00:59:40][%emt 00:11:24]} 20.Ne2 {[%clk 00:25:37][%emt 00:18:51]} 
20...h6 {[%clk 00:41:49][%emt 00:18:22]} 21.Bc1 {[%clk 00:25:31][%emt 00:00:35]} 
21...Bb4 {[%clk 00:41:20][%emt 00:00:59]} 22.Bd2 {[%clk 00:25:11][%emt
00:00:50]} 22...a5 {[%clk 00:39:39][%emt 00:02:11]} 23.Nd4 {[%clk 00:21:07][%emt
00:04:34]} 23...Nc5 {[%clk 00:22:22][%emt 00:17:47]} 24.Qh5 {[%clk
00:15:25][%emt 00:06:12]} 24...Ne4 {[%clk 00:17:36][%emt 00:05:16]} 25.Bxb4 
{[%clk 00:13:49][%emt 00:02:06]} 25...axb4 {[%clk 00:18:02][%emt 00:00:04]} 
26.Nxc6 {[%clk 00:07:22][%emt 00:06:57]} 26...Qxc6 {[%clk 00:18:23][%emt
00:00:09]} 27.Qb5 {[%clk 00:05:59][%emt 00:01:52]} 27...Qxb5 {[%clk
00:18:21][%emt 00:00:33]} 28.cxb5 {[%clk 00:06:29][%emt 00:06:31]} 28...Nf6 
{[%clk 00:12:21]} 29.Bc4 {[%clk 00:06:37][%emt 00:00:22]} 29...Rec8 {[%clk
00:11:13][%emt 00:01:38]} 30.Rd4 {[%clk 00:05:31][%emt 00:01:35]} 30...Rc5 
{[%clk 00:11:18][%emt 00:00:26]} 31.Bb3 {[%clk 00:02:31][%emt 00:03:29]} 
31...Rxb5 {[%clk 00:11:31][%emt 00:00:17]} 32.Rc1 {[%clk 00:02:56][%emt
00:00:05]} 32...Nd5 {[%clk 00:09:16][%emt 00:02:45]} 33.Rdc4 {[%clk
00:03:25][%emt 00:00:02]} 33...Kf8 {[%clk 00:07:52][%emt 00:01:54]} 34.Rc5 
{[%clk 00:03:09][%emt 00:00:45]} 34...Raa5 {[%clk 00:07:39][%emt 00:00:44]} 
35.Rc8+ {[%clk 00:02:35][%emt 00:01:04]} 35...Ke7 {[%clk 00:08:07][%emt
00:00:02]} 36.Rb8 {[%clk 00:02:34][%emt 00:00:30]} 36...Ra6 {[%clk
00:06:07][%emt 00:02:31]} 37.Bxd5 {[%clk 00:00:51][%emt 00:02:12]} 37...Rxd5 
{[%clk 00:06:07][%emt 00:00:30]} 38.Rc7+ {[%clk 00:00:48][%emt 00:00:33]} 
38...Rd7 {[%clk 00:06:32][%emt 00:00:05]} 1/2-1/2

[Event "FIDE Grand Swiss 2023"]
[Site "Villa Marina, Douglas, Isle of Man"]
[Date "2023.11.01"]
[Round "7.28"]
[White "Gledura, Benjamin"]
[Black "Tabatabaei, M. Amin"]
[Result "1-0"]
[WhiteElo "2633"]
[BlackElo "2685"]
[EventDate "2023.10.25"]
[ECO "D35"]
[PlyCount "123"]
[BlackFideId "12521213"]
[TimeControl "40/100 + 20/50 + 15 + 30s/move"]
[WhiteFideId "712779"]

1.d4 {[%emt 00:00:34]} 1...Nf6 {[%clk 01:40:06][%emt 00:00:24]} 2.c4 {[%clk
01:41:17][%emt 00:00:09]} 2...e6 {[%clk 01:40:27][%emt 00:00:07]} 3.Nc3 {[%clk
01:41:23][%emt 00:00:26]} 3...d5 {[%clk 01:40:45][%emt 00:00:11]} 4.cxd5 {[%clk
01:41:14][%emt 00:00:40]} 4...exd5 {[%clk 01:41:07][%emt 00:00:08]} 5.Bg5 
{[%clk 01:41:32][%emt 00:00:11]} 5...Be7 {[%clk 01:41:23][%emt 00:00:14]} 6.e3 
{[%clk 01:41:37][%emt 00:00:26]} 6...O-O {[%clk 01:41:39][%emt 00:00:11]} 7.Bd3 
{[%clk 01:41:40][%emt 00:00:29]} 7...Re8 {[%clk 01:41:43][%emt 00:00:24]} 
8.Nge2 {[%clk 01:28:45][%emt 00:13:28]} 8...c6 {[%clk 01:41:30][%emt 00:00:44]} 
9.h3 {[%clk 01:26:58][%emt 00:02:16]} 9...Nbd7 {[%clk 01:36:05][%emt 00:05:56]} 
10.Qc2 {[%clk 01:26:55][%emt 00:00:33]} 10...b5 {[%clk 01:29:20][%emt 00:07:14]} 
11.O-O {[%clk 01:25:25][%emt 00:01:59]} 11...g6 {[%clk 01:27:28][%emt 00:02:23]} 
12.Nc1 {[%clk 01:10:18][%emt 00:15:37]} 12...a5 {[%clk 01:22:21][%emt 00:05:38]} 
13.a4 {[%clk 01:08:25][%emt 00:02:22]} 13...b4 {[%clk 01:22:41][%emt 00:00:10]} 
14.N3e2 {[%clk 01:08:42][%emt 00:00:13]} 14...Qb6 {[%clk 01:20:57][%emt
00:02:15]} 15.Nb3 {[%clk 01:08:29][%emt 00:00:43]} 15...Ba6 {[%clk
01:21:03][%emt 00:00:25]} 16.Bxa6 {[%clk 00:58:25][%emt 00:10:33]} 16...Qxa6 
{[%clk 01:21:01][%emt 00:00:32]} 17.Rac1 {[%clk 00:57:24][%emt 00:01:32]} 
17...Rac8 {[%clk 01:20:47][%emt 00:00:44]} 18.Nf4 {[%clk 00:53:25][%emt
00:04:28]} 18...Bf8 {[%clk 01:19:23][%emt 00:01:54]} 19.Bxf6 {[%clk
00:49:50][%emt 00:04:05]} 19...Nxf6 {[%clk 01:18:10][%emt 00:01:43]} 20.Qe2 
{[%clk 00:50:09][%emt 00:00:11]} 20...Qb6 {[%clk 01:17:04][%emt 00:01:36]} 
21.Rc2 {[%clk 00:45:44][%emt 00:04:55]} 21...Bd6 {[%clk 01:16:07][%emt
00:01:27]} 22.Nd3 {[%clk 00:45:19][%emt 00:00:55]} 22...h5 {[%clk 01:13:11][%emt
00:03:26]} 23.Rfc1 {[%clk 00:41:54][%emt 00:03:55]} 23...Kg7 {[%clk
01:05:29][%emt 00:08:12]} 24.Ndc5 {[%clk 00:38:55][%emt 00:03:29]} 24...Bb8 
{[%clk 01:04:53][%emt 00:01:06]} 25.Qf3 {[%clk 00:36:24][%emt 00:03:01]} 
25...Re7 {[%clk 01:02:45][%emt 00:02:38]} 26.Nd2 {[%clk 00:35:30][%emt
00:01:24]} 26...Qc7 {[%clk 00:46:08][%emt 00:17:08]} 27.Nf1 {[%clk
00:35:07][%emt 00:00:52]} 27...Ba7 {[%clk 00:44:26][%emt 00:02:12]} 28.Nd3 
{[%clk 00:32:55][%emt 00:02:42]} 28...Qb7 {[%clk 00:41:50][%emt 00:03:06]} 
29.Nd2 {[%clk 00:27:44][%emt 00:05:40]} 29...Bb8 {[%clk 00:28:27][%emt
00:13:54]} 30.Nb3 {[%clk 00:22:36][%emt 00:05:38]} 30...Qb6 {[%clk
00:28:11][%emt 00:00:46]} 31.Rc5 {[%clk 00:18:07][%emt 00:04:58]} 31...Ne4 
{[%clk 00:27:36][%emt 00:01:05]} 32.R5c2 {[%clk 00:15:40][%emt 00:02:57]} 
32...Bd6 {[%clk 00:17:12][%emt 00:10:55]} 33.Qd1 {[%clk 00:14:10][%emt
00:02:00]} 33...Bb8 {[%clk 00:13:50][%emt 00:03:52]} 34.Nbc5 {[%clk
00:08:37][%emt 00:06:02]} 34...Kg8 {[%clk 00:10:18][%emt 00:04:02]} 35.Nxe4 
{[%clk 00:07:54][%emt 00:01:13]} 35...dxe4 {[%clk 00:10:40][%emt 00:00:08]} 
36.Nc5 {[%clk 00:07:56][%emt 00:00:28]} 36...Qc7 {[%clk 00:06:38][%emt
00:04:33]} 37.g3 {[%clk 00:08:19][%emt 00:00:07]} 37...Qd6 {[%clk 00:07:04][%emt
00:00:03]} 38.h4 {[%clk 00:06:12][%emt 00:02:37]} 38...Qd5 {[%clk 00:06:32][%emt
00:01:02]} 39.Qf1 {[%clk 00:06:21][%emt 00:00:20]} 39...Bc7 {[%clk
00:03:32][%emt 00:03:31]} 40.Qa6 {[%clk 00:03:54][%emt 00:02:57]} 40...Rb8 
{[%clk 00:01:16][%emt 00:02:46]} 41.Qc4 {[%clk 00:01:44][%emt 00:02:41]} 
41...Bb6 {[%clk 00:48:04][%emt 00:03:42]} 42.Na6 {[%clk 00:45:04][%emt
00:07:10]} 42...Ra8 {[%clk 00:40:28][%emt 00:08:06]} 43.Qxd5 {[%clk
00:42:48][%emt 00:02:46]} 43...cxd5 {[%clk 00:40:56][%emt 00:00:02]} 44.Nc7 
{[%clk 00:40:57][%emt 00:02:20]} 44...Bxc7 {[%clk 00:31:07][%emt 00:10:20]} 
45.Rxc7 {[%clk 00:40:07][%emt 00:01:20]} 45...Ree8 {[%clk 00:31:36][%emt
00:00:01]} 46.R1c6 {[%clk 00:31:04][%emt 00:09:32]} 46...b3 {[%clk
00:30:12][%emt 00:01:54]} 47.Rb7 {[%clk 00:23:06][%emt 00:08:29]} 47...Reb8 
{[%clk 00:16:34][%emt 00:14:07]} 48.Rcc7 {[%clk 00:20:59][%emt 00:02:37]} 
48...Rxb7 {[%clk 00:15:49][%emt 00:01:15]} 49.Rxb7 {[%clk 00:21:24][%emt
00:00:05]} 49...Kg7 {[%clk 00:14:26][%emt 00:01:54]} 50.Rxb3 {[%clk
00:21:34][%emt 00:00:19]} 50...Kf6 {[%clk 00:14:51][%emt 00:00:06]} 51.Rb6+ 
{[%clk 00:21:43][%emt 00:00:21]} 51...Ke7 {[%clk 00:15:13][%emt 00:00:08]} 
52.b3 {[%clk 00:20:18][%emt 00:01:54]} 52...Kd7 {[%clk 00:13:20][%emt 00:02:24]} 
53.Kg2 {[%clk 00:20:09][%emt 00:00:38]} 53...Ke7 {[%clk 00:12:23][%emt
00:01:28]} 54.Kh3 {[%clk 00:19:58][%emt 00:00:40]} 54...Rc8 {[%clk
00:11:00][%emt 00:01:54]} 55.Rb5 {[%clk 00:16:49][%emt 00:03:39]} 55...Kd6 
{[%clk 00:11:22][%emt 00:00:07]} 56.Rxa5 {[%clk 00:16:20][%emt 00:01:00]} 
56...Rb8 {[%clk 00:11:46][%emt 00:00:06]} 57.Rb5 {[%clk 00:15:08][%emt
00:01:41]} 57...Rxb5 {[%clk 00:12:09][%emt 00:00:08]} 58.axb5 {[%clk
00:15:33][%emt 00:00:05]} 58...f5 {[%clk 00:12:33][%emt 00:00:05]} 59.g4 {[%clk
00:11:27][%emt 00:04:35]} 59...hxg4+ {[%clk 00:12:56][%emt 00:00:08]} 60.Kg3 
{[%clk 00:11:52][%emt 00:00:05]} 60...Kc7 {[%clk 00:13:21][%emt 00:00:05]} 
61.Kf4 {[%clk 00:11:55][%emt 00:00:27]} 61...Kb6 {[%clk 00:13:43][%emt
00:00:09]} 62.Ke5 {[%clk 00:11:18]} 1-0

[Event "FIDE Grand Swiss 2023"]
[Site "Villa Marina, Douglas, Isle of Man"]
[Date "2023.11.01"]
[Round "7.29"]
[White "Durarbayli, Vasif"]
[Black "Abasov, Nijat"]
[Result "1/2-1/2"]
[WhiteElo "2625"]
[BlackElo "2679"]
[EventDate "2023.10.25"]
[ECO "C70"]
[PlyCount "55"]
[BlackClock "01:00:01"]
[BlackFideId "13402960"]
[TimeControl "40/100 + 20/50 + 15 + 30s/move"]
[WhiteClock "00:11:02"]
[WhiteFideId "13402935"]

1.e4 {[%clk 01:40:54][%emt 00:00:05]} 1...e5 {[%clk 01:40:54][%emt 00:00:06]} 
2.Nf3 {[%clk 01:41:07][%emt 00:00:18]} 2...Nc6 {[%clk 01:41:16][%emt 00:00:07]} 
3.Bb5 {[%clk 01:41:24][%emt 00:00:14]} 3...a6 {[%clk 01:41:39][%emt 00:00:07]} 
4.Ba4 {[%clk 01:41:40][%emt 00:00:13]} 4...Bc5 {[%clk 01:42:02][%emt 00:00:07]} 
5.O-O {[%clk 01:37:33][%emt 00:04:37]} 5...Nge7 {[%clk 01:41:03][%emt 00:01:29]} 
6.Nxe5 {[%clk 01:19:28][%emt 00:18:36]} 6...Nxe5 {[%clk 01:41:12][%emt
00:00:21]} 7.d4 {[%clk 01:19:51][%emt 00:00:07]} 7...b5 {[%clk 01:41:24][%emt
00:00:17]} 8.Bb3 {[%clk 01:19:59][%emt 00:00:22]} 8...Bxd4 {[%clk 01:41:42][%emt
00:00:12]} 9.Qxd4 {[%clk 01:20:23][%emt 00:00:07]} 9...d6 {[%clk 01:42:01][%emt
00:00:10]} 10.f4 {[%clk 01:10:02][%emt 00:10:52]} 10...c5 {[%clk 01:40:33][%emt
00:01:57]} 11.Qc3 {[%clk 01:07:32][%emt 00:03:00]} 11...N5g6 {[%clk
01:37:04][%emt 00:03:58]} 12.a4 {[%clk 01:05:36][%emt 00:02:27]} 12...Bb7 
{[%clk 01:24:16][%emt 00:13:18]} 13.axb5 {[%clk 00:58:48][%emt 00:07:19]} 
13...axb5 {[%clk 01:24:34][%emt 00:00:11]} 14.Rxa8 {[%clk 00:59:13][%emt
00:00:05]} 14...Bxa8 {[%clk 01:22:55][%emt 00:02:05]} 15.Ba2 {[%clk
00:42:35][%emt 00:17:13]} 15...c4 {[%clk 01:09:46][%emt 00:13:38]} 16.Qd4 
{[%clk 00:30:14][%emt 00:12:52]} 16...O-O {[%clk 01:06:38][%emt 00:03:36]} 
17.Nc3 {[%clk 00:29:36][%emt 00:01:10]} 17...Nc6 {[%clk 01:04:03][%emt
00:03:05]} 18.Qf2 {[%clk 00:28:59][%emt 00:01:07]} 18...Nb4 {[%clk
01:04:12][%emt 00:00:20]} 19.Bb1 {[%clk 00:29:06][%emt 00:00:24]} 19...Re8 
{[%clk 01:04:09][%emt 00:00:32]} 20.Bd2 {[%clk 00:26:05][%emt 00:03:31]} 
20...Na6 {[%clk 01:02:45][%emt 00:01:55]} 21.f5 {[%clk 00:23:47][%emt 00:02:48]} 
21...Ne5 {[%clk 01:01:07][%emt 00:02:08]} 22.f6 {[%clk 00:20:59][%emt 00:03:18]} 
22...Ng4 {[%clk 00:58:36][%emt 00:03:00]} 23.Qg3 {[%clk 00:16:15][%emt
00:05:14]} 23...Nxf6 {[%clk 00:58:58][%emt 00:00:08]} 24.Bh6 {[%clk 00:14:18]
[%emt 00:02:27]} 24...Nh5 {[%clk 00:59:00] [%emt 00:00:28]} 25.Qf3 {[%clk
00:13:45] [%emt 00:01:04]} 25...Nf6 {[%clk 00:59:24] [%emt 00:00:05]} 26.Qg3 
{[%clk 00:13:47] [%emt 00:00:29]} 26...Nh5 {[%clk 00:59:00][%emt 00:00:28]} 
27.Qf3 {[%clk 00:13:45][%emt 00:01:04]} 27...Nf6 {[%clk 00:59:24][%emt
00:00:05]} 28.Qg3 {[%clk 00:14:18][%emt 00:02:27]} 1/2-1/2

[Event "FIDE Grand Swiss 2023"]
[Site "Villa Marina, Douglas, Isle of Man"]
[Date "2023.11.01"]
[Round "7.30"]
[White "Bluebaum, Matthias"]
[Black "Sargsyan, Shant"]
[Result "1/2-1/2"]
[WhiteElo "2668"]
[BlackElo "2631"]
[EventDate "2023.10.25"]
[ECO "D00"]
[PlyCount "61"]
[BlackClock "00:48:24"]
[BlackFideId "13306766"]
[TimeControl "40/100 + 20/50 + 15 + 30s/move"]
[WhiteClock "00:32:41"]
[WhiteFideId "24651516"]

1.d4 {[%clk 01:40:56][%emt 00:00:02]} 1...Nf6 {[%clk 01:39:30][%emt 00:01:31]} 
2.Bf4 {[%clk 01:41:11][%emt 00:00:15]} 2...g6 {[%clk 01:38:10][%emt 00:01:50]} 
3.Nc3 {[%clk 01:41:10][%emt 00:00:31]} 3...d5 {[%clk 01:37:11][%emt 00:01:29]} 
4.Nf3 {[%clk 01:41:00][%emt 00:00:40]} 4...Bg7 {[%clk 01:37:14][%emt 00:00:27]} 
5.e3 {[%clk 01:41:24][%emt 00:00:06]} 5...O-O {[%clk 01:36:30][%emt 00:01:14]} 
6.Be2 {[%clk 01:38:56][%emt 00:02:58]} 6...Bg4 {[%clk 01:33:53][%emt 00:03:07]} 
7.h3 {[%clk 01:32:42][%emt 00:06:45]} 7...Bxf3 {[%clk 01:33:18][%emt 00:01:04]} 
8.Bxf3 {[%clk 01:33:07][%emt 00:00:05]} 8...c6 {[%clk 01:32:58][%emt 00:00:51]} 
9.O-O {[%clk 01:15:06][%emt 00:18:30]} 9...Re8 {[%clk 01:28:38][%emt 00:04:50]} 
10.Ne2 {[%clk 01:00:14][%emt 00:15:22]} 10...Nbd7 {[%clk 01:27:27][%emt
00:01:41]} 11.Rc1 {[%clk 00:51:08][%emt 00:09:36]} 11...e5 {[%clk 01:22:08][%emt
00:05:49]} 12.dxe5 {[%clk 00:51:32][%emt 00:00:07]} 12...Nxe5 {[%clk
01:22:32][%emt 00:00:06]} 13.Bxe5 {[%clk 00:51:50][%emt 00:00:12]} 13...Rxe5 
{[%clk 01:22:53][%emt 00:00:09]} 14.c4 {[%clk 00:52:19][%emt 00:00:02]} 
14...Qb6 {[%clk 01:12:39][%emt 00:10:42]} 15.Qd4 {[%clk 00:47:58][%emt
00:04:51]} 15...Qxd4 {[%clk 01:03:59][%emt 00:09:10]} 16.Nxd4 {[%clk
00:46:34][%emt 00:01:55]} 16...dxc4 {[%clk 01:03:51][%emt 00:00:37]} 17.Rxc4 
{[%clk 00:47:01][%emt 00:00:04]} 17...Nd7 {[%clk 01:02:37][%emt 00:01:43]} 
18.Rd1 {[%clk 00:44:01][%emt 00:03:30]} 18...Nb6 {[%clk 01:00:38][%emt
00:02:30]} 19.Rc2 {[%clk 00:42:09][%emt 00:02:22]} 19...a5 {[%clk 00:58:44][%emt
00:02:24]} 20.Nb3 {[%clk 00:35:36][%emt 00:07:03]} 20...Bf8 {[%clk
00:56:01][%emt 00:03:12]} 21.Nd2 {[%clk 00:34:02][%emt 00:02:05]} 21...Rd8 
{[%clk 00:52:00][%emt 00:04:31]} 22.b3 {[%clk 00:30:57][%emt 00:03:36]} 
22...Bb4 {[%clk 00:46:39][%emt 00:05:50]} 23.Nc4 {[%clk 00:29:58][%emt
00:01:29]} 23...Rxd1+ {[%clk 00:47:00][%emt 00:00:10]} 24.Bxd1 {[%clk
00:30:26][%emt 00:00:01]} 24...Nxc4 {[%clk 00:46:51][%emt 00:00:38]} 25.Rxc4 
{[%clk 00:30:30][%emt 00:00:27]} 25...Rd5 {[%clk 00:47:05][%emt 00:00:16]} 
26.Rd4 {[%clk 00:30:56][%emt 00:00:05]} 26...Rxd4 {[%clk 00:47:25][%emt
00:00:09]} 27.exd4 {[%clk 00:31:24][%emt 00:00:02]} 27...Bc3 {[%clk
00:47:28][%emt 00:00:27]} 28.d5 {[%clk 00:31:25][%emt 00:00:29]} 28...cxd5 
{[%clk 00:47:53][%emt 00:00:05]} 29.Bf3 {[%clk 00:31:52] [%emt 00:00:03]} 
29...Kg7 {[%clk 00:48:00] [%emt 00:00:22]} 30.Bxd5 {[%clk 00:32:17] [%emt
00:00:06]} 30...b6 {[%clk 00:48:26] [%emt 00:00:04]} 31.Kf1 {[%clk 00:32:41]
[%emt 00:00:06]} 1/2-1/2

[Event "FIDE Grand Swiss 2023"]
[Site "Villa Marina, Douglas, Isle of Man"]
[Date "2023.11.01"]
[Round "7.31"]
[White "Pichot, Alan"]
[Black "Mishra, Abhimanyu"]
[Result "1-0"]
[WhiteElo "2650"]
[BlackElo "2592"]
[EventDate "2023.10.25"]
[ECO "B54"]
[PlyCount "93"]
[BlackClock "00:42:25"]
[BlackFideId "30920019"]
[TimeControl "40/100 + 20/50 + 15 + 30s/move"]
[WhiteClock "00:57:50"]
[WhiteFideId "110973"]

1.e4 {[%clk 01:40:51][%emt 00:00:08]} 1...c5 {[%clk 01:40:54][%emt 00:00:07]} 
2.Nf3 {[%clk 01:41:14][%emt 00:00:06]} 2...d6 {[%clk 01:41:05][%emt 00:00:20]} 
3.d4 {[%clk 01:41:34][%emt 00:00:10]} 3...cxd4 {[%clk 01:41:16][%emt 00:00:20]} 
4.Nxd4 {[%clk 01:41:54][%emt 00:00:08]} 4...Nf6 {[%clk 01:41:20][%emt 00:00:26]} 
5.Bd3 {[%clk 01:42:11][%emt 00:00:13]} 5...Nc6 {[%clk 01:33:00][%emt 00:08:50]} 
6.Be3 {[%clk 01:42:28][%emt 00:00:13]} 6...g6 {[%clk 01:22:24][%emt 00:11:07]} 
7.h3 {[%clk 01:42:10][%emt 00:00:48]} 7...Bg7 {[%clk 01:20:06][%emt 00:02:48]} 
8.c4 {[%clk 01:42:06][%emt 00:00:33]} 8...O-O {[%clk 01:08:27][%emt 00:12:10]} 
9.Nc3 {[%clk 01:40:55][%emt 00:01:40]} 9...Bd7 {[%clk 01:08:11][%emt 00:00:47]} 
10.Nde2 {[%clk 01:29:43][%emt 00:11:41]} 10...Ne5 {[%clk 01:05:08][%emt
00:03:34]} 11.O-O {[%clk 01:27:33][%emt 00:02:39]} 11...a6 {[%clk 00:51:21][%emt
00:14:18]} 12.a4 {[%clk 01:23:47][%emt 00:04:14]} 12...Qa5 {[%clk 00:48:05][%emt
00:03:47]} 13.b3 {[%clk 01:20:12][%emt 00:04:05]} 13...Nxd3 {[%clk
00:44:51][%emt 00:03:45]} 14.Qxd3 {[%clk 01:20:35][%emt 00:00:07]} 14...Rfc8 
{[%clk 00:42:44][%emt 00:02:37]} 15.Bd4 {[%clk 01:16:08][%emt 00:04:57]} 
15...Bc6 {[%clk 00:40:07][%emt 00:03:07]} 16.Nd5 {[%clk 01:03:54][%emt
00:12:43]} 16...Bxd5 {[%clk 00:32:27][%emt 00:08:11]} 17.exd5 {[%clk
01:04:04][%emt 00:00:20]} 17...Re8 {[%clk 00:31:17][%emt 00:01:40]} 18.Rfe1 
{[%clk 00:59:42][%emt 00:04:51]} 18...e5 {[%clk 00:28:49][%emt 00:02:58]} 
19.dxe6 {[%clk 00:59:25][%emt 00:00:48]} 19...Rxe6 {[%clk 00:28:00][%emt
00:01:19]} 20.Bc3 {[%clk 00:56:25][%emt 00:03:29]} 20...Qb6 {[%clk
00:21:57][%emt 00:06:34]} 21.a5 {[%clk 00:53:32][%emt 00:03:22]} 21...Qc5 
{[%clk 00:20:00][%emt 00:02:27]} 22.Nf4 {[%clk 00:46:02][%emt 00:08:00]} 
22...Rxe1+ {[%clk 00:20:00][%emt 00:00:31]} 23.Rxe1 {[%clk 00:46:24][%emt
00:00:07]} 23...Re8 {[%clk 00:17:50][%emt 00:02:41]} 24.Rxe8+ {[%clk
00:43:44][%emt 00:03:10]} 24...Nxe8 {[%clk 00:18:18][%emt 00:00:02]} 25.Nd5 
{[%clk 00:43:55][%emt 00:00:18]} 25...Kf8 {[%clk 00:16:43][%emt 00:02:05]} 
26.Qd2 {[%clk 00:30:29][%emt 00:13:56]} 26...Qc8 {[%clk 00:13:06][%emt
00:04:07]} 27.Bxg7+ {[%clk 00:27:02][%emt 00:03:57]} 27...Kxg7 {[%clk
00:12:45][%emt 00:00:52]} 28.Qd4+ {[%clk 00:27:02][%emt 00:00:29]} 28...f6 
{[%clk 00:12:45][%emt 00:00:30]} 29.Qb6 {[%clk 00:26:38][%emt 00:00:54]} 
29...Kf7 {[%clk 00:09:32][%emt 00:03:44]} 30.b4 {[%clk 00:23:47][%emt 00:03:21]} 
30...g5 {[%clk 00:04:31][%emt 00:05:32]} 31.b5 {[%clk 00:22:18][%emt 00:01:58]} 
31...axb5 {[%clk 00:02:35][%emt 00:02:26]} 32.cxb5 {[%clk 00:22:26][%emt
00:00:22]} 32...Ke6 {[%clk 00:02:06][%emt 00:00:59]} 33.Qd4 {[%clk
00:19:42][%emt 00:03:14]} 33...f5 {[%clk 00:02:02][%emt 00:00:34]} 34.g4 {[%clk
00:16:47][%emt 00:03:25]} 34...Qc1+ {[%clk 00:00:34][%emt 00:01:57]} 35.Kg2 
{[%clk 00:16:27][%emt 00:00:51]} 35...Qb1 {[%clk 00:00:39][%emt 00:00:26]} 
36.gxf5+ {[%clk 00:13:36][%emt 00:03:20]} 36...Qxf5 {[%clk 00:00:40][%emt
00:00:28]} 37.a6 {[%clk 00:13:20][%emt 00:00:47]} 37...bxa6 {[%clk
00:00:45][%emt 00:00:25]} 38.b6 {[%clk 00:13:37][%emt 00:00:13]} 38...Qb1 
{[%clk 00:00:36][%emt 00:00:39]} 39.Nb4 {[%clk 00:10:00][%emt 00:04:07]} 
39...Nf6 {[%clk 00:00:33][%emt 00:00:32]} 40.b7 {[%clk 00:09:16][%emt 00:01:15]} 
40...Nd7 {[%clk 00:00:40][%emt 00:00:22]} 41.Qd5+ {[%clk 00:08:38][%emt
00:01:08]} 41...Ke7 {[%clk 00:42:46][%emt 00:08:25]} 42.Nc6+ {[%clk
00:58:23][%emt 00:00:45]} 42...Kf8 {[%clk 00:42:33][%emt 00:00:42]} 43.Qxd6+ 
{[%clk 00:58:37][%emt 00:00:16]} 43...Kg8 {[%clk 00:42:41][%emt 00:00:22]} 
44.Qe6+ {[%clk 00:57:01][%emt 00:02:06]} 44...Kf8 {[%clk 00:42:31][%emt
00:00:40]} 45.Qe7+ {[%clk 00:57:19][%emt 00:00:12]} 45...Kg8 {[%clk
00:42:57][%emt 00:00:05]} 46.Qe8+ {[%clk 00:57:36][%emt 00:00:13]} 46...Nf8 
{[%clk 00:42:33][%emt 00:00:54]} 47.b8=Q {[%clk 00:57:50] [%emt 00:00:16]} 1-0